bitfinex/quotes_SOLUSD_20241102
["timestamp","ask_amount","ask_price","bid_price","bid_amount"]
[1730568692139,17.81494011,164.15,164.1,33.04944011]
[1730568692345,17.81494011,164.16,164.11,17.81494011]
[1730568693138,17.81494011,164.16,164.12,23.776884]
[1730568693317,17.81494011,164.16,164.12,29.869884]
[1730568693731,17.81494011,164.15,164.14,23.776884]
[1730568694860,17.81494011,164.17,164.14,23.776884]
[1730568697650,17.81494011,164.16,164.14,23.776884]
[1730568697853,17.81494011,164.15,164.14,23.776884]
[1730568700049,17.81494011,164.15,164.13,6.33917075]
[1730568700266,17.81494011,164.14,164.13,30.11605475]
[1730568700434,17.81494011,164.14,164.13,6.33917075]
[1730568701457,23.90704011,164.15,164.13,6.33917075]
[1730568702036,23.90624011,164.17,164.14,23.776884]
[1730568702354,17.81494011,164.17,164.14,23.776884]
[1730568702855,17.81494011,164.19,164.14,23.776884]
[1730568703445,17.81494011,164.19,164.14,29.868784]
[1730568704066,23.90464011,164.21,164.16,23.776884]
[1730568704434,17.48958382,164.21,164.15,35.17676782]
[1730568704738,11.39988382,164.19,164.15,23.776884]
[1730568705046,11.39988382,164.19,164.15,29.868484]
[1730568706055,11.39988382,164.19,164.15,45.098384]
[1730568706352,11.39988382,164.2,164.15,56.49826782]
[1730568707557,11.39988382,164.21,164.17,23.776884]
[1730568708353,11.39988382,164.22,164.17,23.776884]
[1730568708745,11.39988382,164.22,164.17,35.17676782]
[1730568708945,11.39988382,164.21,164.17,23.776884]
[1730568709248,11.39988382,164.2,164.16,23.776884]
[1730568710155,11.39988382,164.2,164.17,6.0912]
[1730568710359,11.39988382,164.2,164.18,23.776884]
[1730568712160,11.39988382,164.21,164.18,23.776884]
[1730568714943,17.48958382,164.21,164.18,23.776884]
[1730568719851,17.48958382,164.21,164.15,32.96761646]
[1730568720168,11.39988382,164.19,164.16,23.776884]
[1730568720472,11.39988382,164.17,164.15,6.33783264]
[1730568720850,11.39988382,164.19,164.15,6.33783264]
[1730568721045,11.39988382,164.2,164.15,39.05931646]
[1730568721258,17.48928382,164.22,164.16,11.39988382]
[1730568721760,17.48928382,164.22,164.17,23.776884]
[1730568721957,6.0894,164.22,164.18,23.776884]
[1730568723260,11.39988382,164.24,164.18,41.26746782]
[1730568723450,17.48858382,164.24,164.18,56.49456782]
[1730568723847,17.48818382,164.25,164.2,23.776884]
[1730568724155,17.48818382,164.25,164.2,35.17676782]
[1730568725163,11.39988382,164.25,164.2,41.26676782]
[1730568725369,11.39988382,164.25,164.2,15.2253]
[1730568725566,11.39988382,164.22,164.21,23.776884]
[1730568726068,11.39988382,164.25,164.21,23.776884]
[1730568726277,11.39988382,164.26,164.21,23.776884]
[1730568727373,17.48798382,164.26,164.21,23.776884]
[1730568727679,17.48738382,164.28,164.23,35.17676782]
[1730568729456,17.48668382,164.29,164.24,11.39988382]
[1730568729651,17.48668382,164.29,164.25,23.776884]
[1730568729852,11.39988382,164.31,164.26,11.39988382]
[1730568730162,11.39988382,164.31,164.27,23.776884]
[1730568730494,15.6087,164.33,164.27,35.17676782]
[1730568730495,11.39988382,164.32,164.27,35.17676782]
[1730568730777,11.39988382,164.34,164.29,23.776884]
[1730568731183,11.39988382,164.34,164.31,23.776884]
[1730568731663,17.48458382,164.35,164.3,35.17676782]
[1730568731977,11.39988382,164.34,164.3,35.17676782]
[1730568732565,11.39988382,164.35,164.3,41.26306782]
[1730568733165,11.39988382,164.36,164.32,23.776884]
[1730568733559,11.39988382,164.35,164.32,23.776884]
[1730568733868,6.0838,164.37,164.31,23.776884]
[1730568733869,11.39988382,164.34,164.31,23.776884]
[1730568735069,17.48438382,164.35,164.31,23.776884]
[1730568735476,11.39988382,164.34,164.31,23.776884]
[1730568736571,11.39988382,164.35,164.31,29.862884]
[1730568736787,17.48418382,164.36,164.31,41.26276782]
[1730568736966,17.48368382,164.38,164.33,23.776884]
[1730568737355,11.39988382,164.38,164.33,23.776884]
[1730568737555,11.39988382,164.4,164.35,11.39988382]
[1730568737855,11.39988382,164.41,164.36,11.39988382]
[1730568738375,11.39988382,164.41,164.37,23.776884]
[1730568738583,11.39988382,164.4,164.36,23.776884]
[1730568738756,11.39988382,164.37,164.34,23.776884]
[1730568739577,11.39988382,164.36,164.34,23.776884]
[1730568740466,17.77945485,164.35,164.31,20.0]
[1730568740668,17.77945485,164.34,164.31,20.0]
[1730568741359,17.77945485,164.35,164.31,20.0]
[1730568741563,17.77945485,164.32,164.3,15.216]
[1730568741888,6.083,164.39,164.3,15.216]
[1730568741889,17.77945485,164.33,164.3,15.216]
[1730568742390,17.77945485,164.34,164.3,15.216]
[1730568742977,17.77945485,164.33,164.31,23.776884]
[1730568746182,17.77945485,164.36,164.31,29.862784]
[1730568746584,17.77945485,164.34,164.31,29.862784]
[1730568746977,17.77945485,164.33,164.31,23.776884]
[1730568749322,17.77945485,164.32,164.28,26.0868]
[1730568749591,17.77945485,164.32,164.26,45.90062723]
[1730568749592,17.77945485,164.29,164.26,6.34317238]
[1730568749795,17.77945485,164.29,164.26,12.43097238]
[1730568750795,17.77945485,164.29,164.27,23.776884]
[1730568751099,17.77945485,164.28,164.26,6.34317238]
[1730568751296,17.77945485,164.27,164.26,6.34317238]
[1730568752885,17.77945485,164.27,164.16,21.3203]
[1730568752886,79.5029097,164.27,164.16,21.3203]
[1730568753085,17.77945485,164.19,164.16,21.3203]
[1730568753293,17.77945485,164.19,164.16,27.66750709]
[1730568754886,17.77945485,164.19,164.17,23.776884]
[1730568755375,17.77945485,164.19,164.17,29.868084]
[1730568756381,17.77945485,164.18,164.17,29.868084]
[1730568756898,17.77945485,164.18,164.17,23.776884]
[1730568757485,17.77945485,164.19,164.17,29.868084]
[1730568757788,17.77945485,164.22,164.17,62.87563885]
[1730568758685,17.77945485,164.19,164.17,45.096184]
[1730568759007,17.77945485,164.2,164.17,45.096184]
[1730568759611,17.77945485,164.21,164.17,45.096184]
[1730568760499,17.77945485,164.22,164.17,62.87563885]
[1730568761297,17.77945485,164.23,164.19,23.776884]
[1730568762212,17.77945485,164.22,164.2,23.776884]
[1730568763206,17.77945485,164.21,164.2,23.776884]
[1730568763590,17.77945485,164.21,164.17,27.66879387]
[1730568763796,17.77945485,164.18,164.17,6.34979387]
[1730568764009,17.77945485,164.19,164.17,6.34979387]
[1730568764190,17.77945485,164.21,164.17,12.44089387]
[1730568764593,17.77945485,164.2,164.17,21.57789387]
[1730568764794,17.77945485,164.18,164.17,21.57789387]
[1730568765311,17.77945485,164.18,164.17,30.12667787]
[1730568766715,17.77945485,164.24,164.17,30.12667787]
[1730568766716,17.77945485,164.2,164.18,23.776884]
[1730568767314,17.77945485,164.19,164.18,23.776884]
[1730568767795,17.77945485,164.2,164.18,23.776884]
[1730568771701,23.86985485,164.2,164.18,23.776884]
[1730568772097,17.77945485,164.19,164.18,23.776884]
[1730568773636,17.77945485,164.2,164.18,23.776884]
[1730568774509,11.39965856,164.2,164.18,23.776884]
[1730568775510,11.39965856,164.21,164.18,23.776884]
[1730568775910,11.39965856,164.2,164.18,23.776884]
[1730568781717,11.39965856,164.2,164.17,23.776884]
[1730568786538,11.39965856,164.19,164.17,23.776884]
[1730568787914,11.39965856,164.2,164.17,23.776884]
[1730568789331,11.39965856,164.2,164.17,30.1261915]
[1730568793641,37.9568,164.27,164.17,30.1261915]
[1730568793642,11.39965856,164.23,164.19,23.776884]
[1730568793943,11.39965856,164.24,164.19,35.17654256]
[1730568794110,11.39965856,164.23,164.18,35.17654256]
[1730568794730,11.39965856,164.23,164.18,23.776884]
[1730568794936,22.6377,164.27,164.18,23.776884]
[1730568794937,11.39965856,164.21,164.18,29.867384]
[1730568795138,11.39965856,164.2,164.18,23.776884]
[1730568799037,11.39965856,164.21,164.18,23.776884]
[1730568800515,11.39965856,164.22,164.18,29.867584]
[1730568800713,6.0882,164.25,164.18,29.867584]
[1730568800714,11.39965856,164.23,164.18,56.49434256]
[1730568801040,17.48785856,164.25,164.2,11.39965856]
[1730568801213,17.48785856,164.25,164.21,23.776884]
[1730568803243,11.39965856,164.25,164.21,29.866384]
[1730568803935,11.39965856,164.24,164.21,29.866384]
[1730568804325,11.39965856,164.25,164.21,29.866384]
[1730568805327,11.39965856,164.22,164.18,15.2271]
[1730568805636,6.0881,164.26,164.17,40.15560506]
[1730568805637,11.39965856,164.19,164.17,6.3453465]
[1730568806143,11.39965856,164.18,164.17,6.3453465]
[1730568807246,11.39965856,164.18,164.17,30.1222305]
[1730568808229,11.39965856,164.19,164.18,23.776884]
[1730568808548,15.00889201,164.19,164.18,23.776884]
[1730568809117,19.51509498,164.19,164.18,23.776884]
[1730568809618,8.11543642,164.19,164.18,23.776884]
[1730568809824,11.39965856,164.22,164.18,45.094784]
[1730568810023,11.39965856,164.23,164.18,56.49444256]
[1730568810237,8.11889291,164.22,164.18,56.49444256]
[1730568810432,4.50939818,164.21,164.18,56.49444256]
[1730568810634,11.39965856,164.22,164.18,45.094784]
[1730568810827,8.11854306,164.21,164.18,45.094784]
[1730568811031,11.39965856,164.22,164.18,45.094784]
[1730568811234,19.5224783,164.21,164.18,45.094784]
[1730568811446,4.5124741,164.2,164.18,45.094784]
[1730568811744,11.39965856,164.22,164.18,45.094784]
[1730568811951,8.11817343,164.21,164.18,45.094784]
[1730568812140,4.51029769,164.2,164.18,45.094784]
[1730568812348,11.39965856,164.22,164.18,45.094784]
[1730568812545,8.11826665,164.21,164.18,45.094784]
[1730568812735,4.51026653,164.2,164.18,45.094784]
[1730568813053,11.39965856,164.23,164.18,45.094784]
[1730568813250,8.11879611,164.22,164.18,45.094784]
[1730568813430,4.5106506,164.21,164.18,45.094784]
[1730568813636,11.39965856,164.22,164.18,45.094784]
[1730568813839,4.50834644,164.21,164.18,45.094784]
[1730568814037,11.39965856,164.22,164.18,45.094784]
[1730568814247,15.90755112,164.21,164.18,45.094784]
[1730568814444,11.39965856,164.21,164.18,45.094784]
[1730568814928,11.39965856,164.2,164.18,45.094784]
[1730568816343,11.39965856,164.21,164.18,45.094784]
[1730568816547,11.39965856,164.22,164.18,45.094784]
[1730568816856,8.11344584,164.21,164.18,45.094784]
[1730568817058,11.39965856,164.22,164.18,45.094784]
[1730568817252,3.60584293,164.21,164.18,45.094784]
[1730568817451,11.39965856,164.22,164.18,45.094784]
[1730568817661,4.50779239,164.21,164.18,45.094784]
[1730568817960,11.39965856,164.22,164.18,45.094784]
[1730568818256,19.51327329,164.21,164.18,45.094784]
[1730568818559,11.39965856,164.19,164.18,23.776884]
[1730568822047,19.51107673,164.19,164.18,23.776884]
[1730568822249,11.39965856,164.19,164.18,23.776884]
[1730568822436,19.51172308,164.19,164.18,23.776884]
[1730568825149,15.9065835,164.19,164.18,23.776884]
[1730568826176,11.39965856,164.19,164.18,23.776884]
[1730568826871,15.00225381,164.19,164.18,23.776884]
[1730568830359,15.00165767,164.19,164.18,23.776884]
[1730568832163,3.60199911,164.19,164.18,23.776884]
[1730568833363,15.00165767,164.19,164.18,23.776884]
[1730568833553,15.00165767,164.19,164.17,6.34585472]
[1730568833747,11.39965856,164.18,164.17,6.34585472]
[1730568833953,15.00170497,164.18,164.17,6.34585472]
[1730568834771,15.00076851,164.18,164.17,6.34585472]
[1730568838455,3.60110995,164.18,164.17,30.12273872]
[1730568841178,3.60110995,164.18,164.17,36.21393872]
[1730568841357,16.3208,164.25,164.17,36.21393872]
[1730568841358,11.39965856,164.21,164.18,23.776884]
[1730568841664,3.60227379,164.2,164.18,23.776884]
[1730568841869,11.39965856,164.21,164.18,23.776884]
[1730568842185,3.60313212,164.2,164.18,23.776884]
[1730568842388,11.39965856,164.21,164.18,23.776884]
[1730568842680,3.60346313,164.2,164.18,23.776884]
[1730568842891,11.39965856,164.21,164.18,23.776884]
[1730568843091,3.60389569,164.2,164.18,23.776884]
[1730568843378,11.39965856,164.21,164.18,23.776884]
[1730568843586,3.60383586,164.2,164.18,23.776884]
[1730568843773,11.39965856,164.21,164.18,23.776884]
[1730568844081,3.60380123,164.2,164.18,23.776884]
[1730568844285,11.39965856,164.21,164.18,23.776884]
[1730568844456,15.00327325,164.2,164.18,23.776884]
[1730568844661,3.60266179,164.19,164.18,23.776884]
[1730568845473,15.00232035,164.19,164.18,23.776884]
[1730568845670,15.00232035,164.19,164.17,6.34437962]
[1730568845885,15.00232035,164.18,164.17,30.12126362]
[1730568846695,15.00232035,164.18,164.17,6.34437962]
[1730568850792,11.39965856,164.2,164.17,30.12126362]
[1730568850991,3.60232127,164.19,164.17,30.12126362]
[1730568851180,11.39965856,164.2,164.17,30.12126362]
[1730568851486,3.60276977,164.19,164.17,30.12126362]
[1730568851685,3.60276977,164.18,164.17,30.12126362]
[1730568855886,15.00242833,164.18,164.17,30.12126362]
[1730568856592,15.00242833,164.18,164.17,6.34437962]
[1730568857974,15.00339139,164.18,164.17,6.34437962]
[1730568861180,3.60373283,164.18,164.17,36.21246362]
[1730568861492,3.60373283,164.18,164.17,47.61212218]
[1730568861900,3.60641173,164.18,164.17,47.61212218]
[1730568864400,3.60641173,164.18,164.17,36.21246362]
[1730568865508,11.39965856,164.2,164.18,23.776884]
[1730568870905,11.39965856,164.19,164.18,23.776884]
[1730568871081,11.39965856,164.2,164.18,23.776884]
[1730568871493,11.39965856,164.19,164.17,6.34437962]
[1730568871810,11.39965856,164.18,164.17,6.34437962]
[1730568871981,11.39965856,164.18,164.1,6.0935]
[1730568872175,11.39965856,164.13,164.11,5.44]
[1730568872578,11.39965856,164.13,164.11,11.77811929]
[1730568873103,11.39965856,164.13,164.11,6.33811929]
[1730568873488,11.39965856,164.12,164.11,6.33811929]
[1730568876604,17.49275856,164.12,164.11,6.33811929]
[1730568877997,33.64015856,164.12,164.11,6.33811929]
[1730568878294,53.64015856,164.12,164.03,15.2404]
[1730568878601,11.39965856,164.06,164.03,21.3368]
[1730568878807,11.39965856,164.06,164.04,6.33857184]
[1730568881698,11.39965856,164.07,164.04,6.33857184]
[1730568881904,11.39965856,164.09,164.05,23.776884]
[1730568882206,11.39965856,164.08,164.05,23.776884]
[1730568882615,11.39965856,164.07,164.05,23.776884]
[1730568883537,11.39965856,164.06,164.05,23.776884]
[1730568886124,11.39965856,164.07,164.05,23.776884]
[1730568886432,11.39965856,164.06,164.04,6.33857184]
[1730568889230,11.39965856,164.05,164.04,6.33857184]
[1730568889920,17.49535856,164.05,164.04,6.33857184]
[1730568890106,17.49535856,164.05,164.0,0.6092252]
[1730568890307,11.39965856,164.02,164.01,6.34010008]
[1730568893643,17.49645856,164.02,164.01,6.34010008]
[1730568896742,17.49645856,164.02,164.0,0.6092252]
[1730568897056,11.39965856,164.01,164.0,0.6092252]
[1730568899528,17.49675856,164.01,164.0,0.6092252]
[1730568899733,63.0953928,164.01,164.0,0.6092252]
[1730568900759,79.4771928,164.01,164.0,0.6092252]
[1730568901132,33.87855856,164.01,164.0,0.6092252]
[1730568901552,79.4771928,164.01,164.0,0.6092252]
[1730568903334,33.87855856,164.01,164.0,0.6092252]
[1730568903533,53.87855856,164.01,164.0,0.6092252]
[1730568903748,99.4771928,164.01,164.0,0.6092252]
[1730568904854,53.87855856,164.01,164.0,0.6092252]
[1730568905237,99.4771928,164.01,164.0,0.6092252]
[1730568905934,53.87855856,164.01,164.0,0.6092252]
[1730568906131,65.27821712,164.01,164.0,0.6092252]
[1730568906336,99.4771928,164.01,164.0,0.6092252]
[1730568906642,20.1,163.98,163.96,6.33870793]
[1730568906842,11.39965856,163.97,163.88,6.1017]
[1730568907161,11.39965856,163.91,163.9,6.3379875]
[1730568907338,11.39965856,163.91,163.9,5.8379875]
[1730568909240,11.39965856,163.93,163.9,5.8379875]
[1730568909774,11.39965856,163.95,163.9,38.59174606]
[1730568910270,11.39965856,163.92,163.9,21.0911875]
[1730568910497,11.39965856,163.95,163.9,38.59204606]
[1730568911041,11.39965856,163.94,163.9,27.1923875]
[1730568911564,11.39965856,163.95,163.92,6.1005]
[1730568913462,45.59863424,164.0,163.9,21.0911875]
[1730568913463,11.39965856,163.93,163.9,21.0911875]
[1730568913764,11.39965856,163.92,163.9,21.0911875]
[1730568915667,11.39965856,163.92,163.9,5.8379875]
[1730568915982,11.39965856,163.93,163.9,5.8379875]
[1730568916143,11.39965856,163.94,163.9,5.8379875]
[1730568916338,11.39965856,163.94,163.9,27.1920875]
[1730568916545,11.39965856,163.95,163.9,38.59174606]
[1730568916766,11.39965856,163.95,163.9,27.1920875]
[1730568917069,11.39965856,163.92,163.9,21.0911875]
[1730568917460,11.39965856,163.93,163.9,21.0911875]
[1730568917667,6.0992,163.96,163.9,21.0911875]
[1730568917668,11.39965856,163.94,163.9,27.1923875]
[1730568918246,11.39965856,163.93,163.9,27.1923875]
[1730568922463,11.39965856,163.93,163.9,21.0911875]
[1730568922772,11.39965856,163.92,163.9,21.0911875]
[1730568923562,11.39965856,163.92,163.9,5.8379875]
[1730568924278,11.39965856,163.93,163.9,5.8379875]
[1730568925072,11.39965856,163.92,163.9,5.8379875]
[1730568925674,11.39965856,163.93,163.9,5.8379875]
[1730568926657,6.0986,163.97,163.9,5.8379875]
[1730568926658,11.39965856,163.94,163.9,5.8379875]
[1730568926863,11.39965856,163.94,163.9,11.9389875]
[1730568933885,11.39965856,163.96,163.91,23.776884]
[1730568934073,11.39965856,163.96,163.91,35.17654256]
[1730568935179,11.39965856,163.96,163.92,6.1005]
[1730568936176,11.39965856,163.97,163.93,23.776884]
[1730568936385,11.39965856,163.99,163.94,11.39965856]
[1730568936680,11.39965856,163.99,163.95,23.776884]
[1730568937392,11.39965856,163.99,163.95,29.876184]
[1730568937989,11.39965856,163.99,163.95,45.124684]
[1730568938184,11.39965856,163.98,163.95,45.124684]
[1730568938968,11.39965856,163.96,163.93,23.776884]
[1730568939167,11.39965856,163.95,163.93,23.776884]
[1730568939669,11.39965856,163.94,163.89,11.39965856]
[1730568939891,11.39965856,163.93,163.9,6.1011]
[1730568940388,11.39965856,163.93,163.89,21.3554]
[1730568941598,15.2448,163.99,163.89,21.3554]
[1730568941599,11.39965856,163.96,163.91,11.39965856]
[1730568941799,11.39965856,163.96,163.92,23.776884]
[1730568942592,11.39965856,163.95,163.91,29.877784]
[1730568943472,11.39965856,163.95,163.91,45.129984]
[1730568945777,11.39965856,163.94,163.91,45.129984]
[1730568945975,11.39965856,163.94,163.91,15.2522]
[1730568946186,11.39965856,163.93,163.91,15.2522]
[1730568948105,11.39965856,163.93,163.89,6.1016]
[1730568948281,11.39965856,163.91,163.88,15.2548]
[1730568948676,11.39965856,163.92,163.88,21.3568]
[1730568948889,11.39965856,163.91,163.88,15.2548]
[1730568951101,11.39965856,163.93,163.88,26.65445856]
[1730568951702,11.39965856,163.93,163.89,23.776884]
[1730568951919,11.39965856,163.93,163.89,29.878384]
[1730568952198,11.39965856,163.92,163.89,29.878384]
[1730568953390,11.39965856,163.91,163.89,29.878384]
[1730568953610,11.39965856,163.9,163.88,15.2548]
[1730568954792,11.39965856,163.9,163.85,43.776884]
[1730568954978,11.39965856,163.9,163.85,55.17654256]
[1730568955178,11.39965856,163.9,163.86,6.1027]
[1730568955385,11.39965856,163.9,163.87,23.776884]
[1730568955599,11.39965856,163.9,163.86,6.1027]
[1730568956308,11.39965856,163.89,163.86,6.1027]
[1730568956806,11.39965856,163.89,163.86,23.776884]
[1730568957000,11.39965856,163.89,163.85,23.776884]
[1730568957321,11.39965856,163.89,163.85,29.879884]
[1730568957477,10.73918221,163.89,163.85,29.879884]
[1730568957811,17.50135856,163.89,163.85,29.879884]
[1730568958007,17.50135856,163.89,163.85,23.776884]
[1730568958307,11.39965856,163.88,163.85,23.776884]
[1730568961805,17.50135856,163.89,163.85,29.879984]
[1730568962012,11.39965856,163.89,163.85,29.879984]
[1730568962214,17.50095856,163.9,163.85,41.27964256]
[1730568962712,11.39965856,163.9,163.85,56.53744256]
[1730568962910,11.39965856,163.92,163.87,35.17654256]
[1730568963096,17.49975856,163.93,163.87,35.17654256]
[1730568963293,11.39965856,163.92,163.88,23.776884]
[1730568963503,11.39965856,163.91,163.86,35.17654256]
[1730568964420,11.39965856,163.91,163.88,23.776884]
[1730568965214,11.39965856,163.9,163.88,23.776884]
[1730568965592,11.39965856,163.89,163.83,21.9726252]
[1730568965922,11.39965856,163.88,163.83,21.9726252]
[1730568966416,11.39965856,163.88,163.83,33.37228376]
[1730568966721,11.39965856,163.9,163.85,11.39965856]
[1730568966932,11.39965856,163.9,163.86,23.776884]
[1730568967432,11.39965856,163.91,163.86,23.776884]
[1730568967635,11.39965856,163.92,163.86,35.17654256]
[1730568968335,11.39965856,163.92,163.88,23.776884]
[1730568968840,17.50015856,163.92,163.88,23.776884]
[1730568969015,17.50015856,163.92,163.75,11.39965856]
[1730568969016,22.9115,163.86,163.75,11.39965856]
[1730568969214,22.9115,163.86,163.72,15.2494]
[1730568969215,11.39965856,163.79,163.77,2.07]
[1730568969413,0.1,163.84,163.72,48.02585856]
[1730568969614,0.1,163.84,163.72,32.77645856]
[1730568969831,0.1,163.84,163.72,21.3768]
[1730568970244,11.39965856,163.76,163.71,20.0]
[1730568970635,11.39965856,163.79,163.73,11.39965856]
[1730568970945,11.39965856,163.81,163.75,11.39965856]
[1730568971344,11.39965856,163.8,163.74,26.59405856]
[1730568972024,11.39965856,163.79,163.75,6.1068]
[1730568972434,17.89888077,163.8,163.75,6.1068]
[1730568972641,17.89888077,163.82,163.76,17.89888077]
[1730568974525,17.89888077,163.82,163.77,21.3714]
[1730568975542,17.89888077,163.81,163.77,21.3714]
[1730568976342,17.89888077,163.82,163.77,39.27028077]
[1730568976733,17.89888077,163.82,163.77,21.3714]
[1730568980125,17.89888077,163.82,163.77,33.16418077]
[1730568981147,17.89888077,163.84,163.79,17.89888077]
[1730568981558,17.89888077,163.85,163.8,17.89888077]
[1730568982240,17.89888077,163.83,163.79,21.3687]
[1730568982453,17.89888077,163.84,163.79,39.26758077]
[1730568983656,17.89888077,163.87,163.81,17.89888077]
[1730568984158,17.89888077,163.87,163.82,17.89888077]
[1730568984761,17.89888077,163.86,163.82,21.3648]
[1730568987340,17.89888077,163.85,163.82,15.2606]
[1730568988161,6.102,163.88,163.82,15.2606]
[1730568988162,17.89888077,163.84,163.82,15.2606]
[1730568988360,17.89888077,163.83,163.82,15.2606]
[1730568989865,17.89888077,163.83,163.79,21.3687]
[1730568990953,17.89888077,163.84,163.79,39.26758077]
[1730568991664,17.89888077,163.86,163.81,17.89888077]
[1730568991838,17.89888077,163.86,163.82,6.1042]
[1730568992169,17.89888077,163.85,163.82,6.1042]
[1730568992461,17.89888077,163.84,163.82,6.1042]
[1730568992656,17.89888077,163.85,163.82,6.1042]
[1730568993365,17.89888077,163.84,163.81,15.2609]
[1730568993663,17.89888077,163.84,163.81,21.3655]
[1730568994045,6.1016,163.89,163.81,21.3655]
[1730568994046,17.89888077,163.85,163.81,21.3655]
[1730568994258,17.89888077,163.84,163.81,21.3655]
[1730568994471,11.4472666,163.85,163.8,11.4472666]
[1730568995451,11.4472666,163.84,163.79,11.4472666]
[1730568995653,16.2239,163.9,163.79,11.4472666]
[1730568995654,11.4472666,163.85,163.8,39.038584]
[1730568996539,11.4472666,163.83,163.8,21.3667]
[1730568996734,11.4472666,163.84,163.8,21.3667]
[1730568997146,11.4472666,163.83,163.8,21.3667]
[1730568998742,11.4472666,163.82,163.8,15.2617]
[1730569000351,11.4472666,163.83,163.8,15.2617]
[1730569002857,11.4472666,163.84,163.8,15.2617]
[1730569003051,11.4472666,163.83,163.8,21.3667]
[1730569003758,11.4472666,163.84,163.8,21.3667]
[1730569004055,11.4472666,163.83,163.8,21.3667]
[1730569005050,11.4472666,163.83,163.8,15.2617]
[1730569006560,11.4472666,163.84,163.8,15.2617]
[1730569008450,11.4472666,163.83,163.8,21.3667]
[1730569009977,11.4472666,163.83,163.8,15.2617]
[1730569011151,11.4472666,163.81,163.76,21.3725]
[1730569011354,11.4472666,163.78,163.76,15.2661]
[1730569011560,11.4472666,163.78,163.76,21.3725]
[1730569012057,11.4472666,163.77,163.76,15.2661]
[1730569012373,11.4472666,163.77,163.74,15.85145416]
[1730569017283,11.4472666,163.78,163.74,31.11955416]
[1730569017468,11.4472666,163.8,163.75,11.4472666]
[1730569017662,11.4472666,163.81,163.76,11.4472666]
[1730569018978,11.4472666,163.82,163.77,11.4472666]
[1730569019161,11.4472666,163.81,163.75,35.2241506]
[1730569020065,11.4472666,163.81,163.76,21.3726]
[1730569021670,11.4472666,163.8,163.76,21.3726]
[1730569022062,11.4472666,163.79,163.76,21.3726]
[1730569022779,11.4472666,163.79,163.75,29.883584]
[1730569024370,11.4472666,163.79,163.75,45.150684]
[1730569024866,11.4472666,163.8,163.75,45.150684]
[1730569025065,11.4472666,163.81,163.75,56.5979506]
[1730569025873,11.4472666,163.8,163.75,56.5979506]
[1730569026474,11.4472666,163.82,163.77,35.2241506]
[1730569026678,11.4472666,163.82,163.77,11.4472666]
[1730569026977,11.4472666,163.81,163.75,56.5979506]
[1730569027289,11.4472666,163.8,163.75,56.5979506]
[1730569028186,11.4472666,163.8,163.75,87.1322506]
[1730569029089,11.4472666,163.81,163.75,87.1322506]
[1730569029971,11.4472666,163.8,163.75,87.1322506]
[1730569031175,11.4472666,163.81,163.75,87.1322506]
[1730569031887,11.4472666,163.81,163.76,11.4472666]
[1730569032293,11.4472666,163.82,163.77,35.2241506]
[1730569032472,11.4472666,163.83,163.78,11.4472666]
[1730569032672,11.4472666,163.84,163.79,11.4472666]
[1730569033192,11.4472666,163.84,163.8,6.105]
[1730569033366,11.4472666,163.86,163.8,32.8147666]
[1730569033567,11.4472666,163.87,163.81,11.4472666]
[1730569033869,11.4472666,163.9,163.84,11.4472666]
[1730569034078,11.4472666,163.9,163.85,11.4472666]
[1730569035590,11.4472666,163.9,163.86,6.1027]
[1730569035787,11.4472666,163.91,163.86,32.8068666]
[1730569035986,11.4472666,163.91,163.87,23.776884]
[1730569037486,11.4472666,163.91,163.88,6.102]
[1730569037673,11.4472666,163.9,163.88,6.102]
[1730569037878,11.4472666,163.91,163.88,6.102]
[1730569038468,11.4472666,163.9,163.88,6.102]
[1730569043512,11.4472666,163.89,163.88,6.102]
[1730569046607,6.102,163.88,163.79,33.2789666]
[1730569046812,11.4472666,163.84,163.79,33.2789666]
[1730569047105,11.4472666,163.82,163.79,6.1053]
[1730569047289,11.4472666,163.81,163.79,6.1053]
[1730569047599,11.4472666,163.81,163.79,21.3685]
[1730569047794,11.4472666,163.81,163.79,15.2632]
[1730569048610,11.4472666,163.8,163.79,15.2632]
[1730569049805,11.4472666,163.8,163.77,23.776884]
[1730569050810,11.4472666,163.8,163.78,6.1057]
[1730569052483,11.4472666,163.8,163.78,21.37]
[1730569053284,11.4472666,163.81,163.78,21.37]
[1730569053481,11.4472666,163.83,163.78,21.37]
[1730569054512,11.4472666,163.84,163.79,11.4472666]
[1730569054711,11.4472666,163.85,163.8,11.4472666]
[1730569055009,11.4472666,163.86,163.8,11.4472666]
[1730569055195,11.4472666,163.86,163.81,11.4472666]
[1730569055510,11.4472666,163.86,163.82,23.776884]
[1730569056012,11.4472666,163.86,163.83,6.1038]
[1730569061988,11.4472666,163.85,163.83,6.1038]